Cogmind - Beta 14 @@@ ROGUE MODE // 2024.08.08 @ 23:07:18 Player: DBrickShaw Result: Destroyed by D-53 Grenadier with Mini Grenade Launcher Performance ------------- Evolutions (0) 0 Regions Visited (2) 400 Robots Destroyed (21) 105 Value Destroyed (403) 403 Prototype IDs (1) 20 Alien Tech Used (0) 0 Bonus (0) 0 TOTAL SCORE: 928 Bonus ------- None Cogmind --------- Core Integrity 0/250 Matter 229/300 Energy 99/100 System Corruption 5% Temperature Cool (0) Movement Core (50) Location -10/Mines Parts ------- > --- POWER (1) -------- (None) > --- PROPULSION (2) --- (None) > --- UTILITY (2) ------ (None) > --- WEAPON (2) ------- (None) > --- INVENTORY (5) ---- Light Ion Engine Aluminum Leg Improved Medium Laser Improved Medium Laser Mining Laser Peak State ------------ > --- POWER ------------ Light Ion Engine > --- PROPULSION ------- Aluminum Leg Aluminum Leg > --- UTILITY ---------- Small Storage Unit Hardened Light Armor Plating > --- WEAPON ----------- Improved Medium Laser Improved Medium Laser > --- INVENTORY -------- Light Ion Engine Aluminum Leg Aluminum Leg Wheel Improved Medium Laser Light Assault Rifle Grenade Launcher Mining Laser [Rating: 13] Favorites ----------- Power Light Ion Engine Engine Light Ion Engine Propulsion Aluminum Leg Leg Aluminum Leg Utility Small Storage Unit Device Heat Sink Storage Small Storage Unit Protection Hardened Light Armor Plating Weapon Improved Medium Laser Energy Gun Improved Medium Laser Ballistic Gun Assault Rifle Launcher Rocket Launcher Special Weapon Mining Laser Impact Weapon Flail Build | -11 -10 -10 ------- Run | Yrd Mat Min Slots Evolved . | . . . Power . | . . . Propulsion . | . . . Utility . | . . . Weapon . | . . . Parts Attached 38 | 6 30 2 Power 5 | 1 4 . Engine 5 | 1 4 . Core . | . . . Reactor . | . . . Propulsion 9 | 2 7 . Treads . | . . . Leg 9 | 2 7 . Wheel . | . . . Hover . | . . . Flight . | . . . Utility 6 | 1 5 . Device 1 | . 1 . Storage 3 | 1 2 . Processor . | . . . Hackware . | . . . Protection 2 | . 2 . Artifact . | . . . Weapon 18 | 2 14 2 Energy Gun 8 | 1 7 . Energy Cannon . | . . . Ballistic Gun 3 | 1 2 . Ballistic Cannon . | . . . Launcher 4 | . 2 2 Special Weapon 1 | . 1 . Impact Weapon 2 | . 2 . Slashing Weapon . | . . . Piercing Weapon . | . . . Special Melee Weapon . | . . . Unidentified Prototypes 1 | . 1 . Parts Lost 5 | . 4 1 Power 1 | . 1 . Propulsion 1 | . 1 . Utility 1 | . 1 . Weapon 2 | . 1 1 Highest Loss Streak 3 | . 3 1 To Critical Strikes . | . . . Average Slot Usage (%) 96 | . 96 99 Engine 13 | . 13 14 Leg 28 | . 28 28 Device 4 | . 3 14 Storage 14 | . 14 14 Protection 6 | . 8 . Energy Gun 18 | . 21 . Ballistic Gun 4 | . 5 . Launcher 2 | . . 14 Special Weapon 1 | . . 12 Peak Build Rating 13 | 6 13 9 Average Rating 10 | 5 11 8 On Entrance 4 | . 6 8 Naked Turns 1 | . . 1 Heaviest Build 19 | 11 19 18 Greatest Support 20 | 20 20 20 Greatest Overweight (x) 3 | 3 . . Average Overweight (x) . | . . . Largest Inventory Capacity 10 | 8 10 8 Average Capacity 8 | 7 8 7 Most Carried 9 | 5 9 8 Average Carried 7 | 2 7 7 Final Capacity 8 | 8 8 5 Final Carried 8 | 5 8 5 Class Distribution -------------------- 100% | Mutant Dominant Class ---------------- Mutant | -10/Materials Mutant | -10/Mines Resources | -11 -10 -10 ----------- Run | Yrd Mat Min Matter Collected 596 | 269 325 2 Remotely . | . . . Salvage Created 580 | 146 429 5 Parts 51 | 15 31 5 Haulers Intercepted . | . . . Recyclers Shooed . | . . . Parts Field Recycled . | . . . Retrieved Matter . | . . . Parts Self-Destructed . | . . . Prevented . | . . . Kills | -11 -10 -10 ------- Run | Yrd Mat Min Combat Hostiles Destroyed 10 | . 10 . Melee 1 | . 1 . Guns 7 | . 7 . AOE 2 | . 2 . Classes Destroyed 6 | 2 3 1 Builder 2 | . . 2 Tunneler 5 | 4 1 . Recycler 1 | 1 . . Watcher 3 | . 3 . Swarmer 3 | . 3 . Grunt 7 | . 7 . Best Kill Streak 5 | 5 3 1 Combat Bots Only 3 | . 3 . Max Kills in Single Turn 2 | 1 2 1 Gunslinging . | . . . Exploded 2 | . 2 . Melee 1 | . 1 . Uniques/NPCs Destroyed . | . . . Combat | -11 -10 -10 -------- Run | Yrd Mat Min Hostile Shots Fired 100 | . 95 5 Missed 27 | . 26 1 Damage Taken 1210 | 56 939 215 Core 263 | . 181 82 Absorbed by Shields . | . . . Core Remaining (%) 100 | 100 . . Volleys Fired 61 | 9 48 4 Largest 2 | 2 2 1 Hottest 112 | 60 112 100 Shots Fired 112 | 18 90 4 Gun 107 | 18 89 . Cannon . | . . . Launcher 2 | . 1 1 Special 3 | . . 3 Kinetic 36 | 9 27 . Thermal 55 | . 52 3 Explosive 2 | . 1 1 Electromagnetic 19 | 9 10 . Robot Hit Streak 10 | 10 10 3 Robot Miss Streak 4 | 2 4 2 Penetration Max . | . . . Secondary Targets . | . . . Shots Hit Robots 74 | 13 59 2 Core Hits 33 | 5 22 6 Critical Kills . | . . . Critical Parts Destroyed 1 | . 1 . Critical Strikes 4 | 1 3 . Burn 2 | . 2 . Destroy 1 | . 1 . Corrupt 1 | 1 . . Melee Attacks 6 | . 6 . Impact 6 | . 6 . Slashing . | . . . Piercing . | . . . Sneak Attacks . | . . . Combat Hostiles . | . . . Follow-up Attacks . | . . . Damage Inflicted 1321 | 194 1022 105 Guns 926 | 133 793 . Cannons . | . . . Explosions 222 | 61 104 57 Melee 125 | . 125 . Ramming . | . . . Kinetic 231 | 23 208 . Thermal 617 | 61 508 48 Explosive 136 | . 79 57 Electromagnetic 212 | 110 102 . Impact 125 | . 125 . Slashing . | . . . Piercing . | . . . Highest Corruption 5 | . 5 5 Average Corruption 5 | . 5 5 Corruption Purged . | . . . Corruption Blocked . | . . . Effects 28 | . 24 4 Message Errors 7 | . 4 3 Matter Fused 3 | . 2 1 Heat Flow Errors 2 | . 2 . Energy Discharges 4 | . 4 . Data Loss (minor) 6 | . 6 . Data Loss (major) 3 | . 3 . Alerts 1 | . 1 . Weapon Failures 2 | . 2 . Overload Shots . | . . . Overflow Damage . | . . . Projectiles . | . . . Explosions . | . . . Melee . | . . . Knockbacks . | . . . Impact . | . . . Kinetic . | . . . Secondary . | . . . Self-Inflicted Damage 87 | 57 30 . Shots 3 | 2 1 . Rammed . | . . . Targets Rammed . | . . . Kicked . | . . . Crushed . | . . . Highest Temperature 404 | 32 404 . Average Temperature 121 | 17 128 . Received Heat Transfer 540 | . 534 6 Effects 3 | . 3 . Shutdowns 1 | . 1 . Energy Bleed 1 | . 1 . Interference 1 | . 1 . Siege Activations . | . . . Robots Corrupted . | . . . Combat Hostiles . | . . . Parts Fried . | . . . Impact Corruptions . | . . . Robots Melted . | . . . Combat Hostiles . | . . . Parts Melted 5 | . 5 . Heat Transferred 1421 | 50 1271 100 Parts Sabotaged . | . . . Parts Stolen . | . . . Parts Stripped . | . . . Power Chain Reactions 3 | 2 1 . Alert | -11 -10 -10 ------- Run | Yrd Mat Min Peak Influence 268 | 25 268 50 Initial 45 | . 16 45 Average 88 | 8 107 47 Maximum Alert Level 1 | . 1 . Low Security (%) 88 | 100 85 100 Level 1 11 | . 14 . Level 2 . | . . . Level 3 . | . . . Level 4 . | . . . Level 5 . | . . . High Security . | . . . Max Security . | . . . Squads Dispatched 3 | . 3 . Investigation 1 | . 1 . Extermination . | . . . Reinforcement 2 | . 2 . Assault . | . . . Garrison . | . . . Intercept . | . . . Searches Triggered . | . . . Construction Impeded . | . . . Haulers Reinforced . | . . . Active Scanning Responses . | . . . Cargo Convoy Interrupts . | . . . Stealth | -11 -10 -10 --------- Run | Yrd Mat Min Distress Signals 1 | . 1 . Communications Jammed . | . . . Distress Signals . | . . . Times Spotted 27 | . 17 10 Peak Tracking Total 12 | . 5 12 Tactical Retreats 2 | . 1 1 Traps | -11 -10 -10 ------- Run | Yrd Mat Min Traps Triggered 2 | . 2 . Indirectly . | . . . Trap Hack Attempts . | . . . Triggered . | . . . Disarmed . | . . . Reprogrammed . | . . . Reused . | . . . Traps Extracted . | . . . Installed . | . . . Triggered . | . . . Machines | -11 -10 -10 ---------- Run | Yrd Mat Min Machines Disabled 1 | . 1 . Max in Single Turn 1 | . 1 . Machines Repaired . | . . . Machines Dismantled . | . . . Machines Sabotaged . | . . . Overloaded Fab Kills . | . . . Hacking | -11 -10 -10 --------- Run | Yrd Mat Min Machines Accessed 2 | . 2 . Terminals 2 | . 2 . Fabricators . | . . . Repair Stations . | . . . Recycling Units . | . . . Scanalyzers . | . . . Garrison Access . | . . . Total Hacks 8 | . 8 . Successful 2 | . 2 . Failed 6 | . 6 . Catastrophic . | . . . Database Lockouts . | . . . Manual 8 | . 8 . Terminals 8 | . 8 . Fabricators . | . . . Repair Stations . | . . . Recycling Units . | . . . Scanalyzers . | . . . Garrison Access . | . . . Terminal Hacks 2 | . 2 . Branch Access Points 1 | . 1 . Terminal Index 1 | . 1 . Fabricator Hacks . | . . . Repair Station Hacks . | . . . Recycling Unit Hacks . | . . . Scanalyzer . | . . . Garrison Access Hacks . | . . . Unauthorized Hacks . | . . . Terminals . | . . . Fabricators . | . . . Repair Stations . | . . . Recycling Units . | . . . Scanalyzers . | . . . Garrison Access . | . . . Data Cores Recovered . | . . . Used . | . . . Hacking Detections 2 | . 2 . Full Trace Events . | . . . Feedback Events . | . . . Feedback Blocked . | . . . Robot Schematics Acquired . | . . . Robots Built . | . . . Authchips . | . . . Time . | . . . Total Robot Build Rating . | . . . Part Schematics Acquired . | . . . Parts Built . | . . . Authchips . | . . . Time . | . . . Total Part Build Rating . | . . . Parts Repaired . | . . . Time . | . . . Parts Recycled . | . . . Recycled Matter . | . . . Retrieved Matter . | . . . Retrieved Components . | . . . Parts Scanalyzed . | . . . Part Schematics Acquired . | . . . Parts Damaged . | . . . Bothacking | -11 -10 -10 ------------ Run | Yrd Mat Min Used RIF Installer . | . . . Robots Hacked . | . . . Non-combat . | . . . Combat . | . . . Robot Hacks Applied . | . . . Relay Couplers Released . | . . . Fabnet Peak Effective % . | . . . Robots Rewired . | . . . Allies Hacked . | . . . Hacks Repelled . | . . . Allies | -11 -10 -10 -------- Run | Yrd Mat Min Total Allies 3 | . . 3 Largest Group 3 | . . 3 Highest-Rated Group 40 | . . 40 Highest-Rated Ally 16 | . . 16 Total Orders . | . . . Ally Attacks 21 | . . 21 Total Damage 166 | . . 166 Kills 3 | . . 3 Allies Corrupted . | . . . Allies Melted . | . . . Intel | -11 -10 -10 ------- Run | Yrd Mat Min Robot Analysis Total . | . . . Derelict Logs Recovered . | . . . Drone Launches . | . . . Drone Recoveries . | . . . Exploration | -11 -10 -10 ------------- Run | Yrd Mat Min Turns Passed 1251 | 146 949 156 Spaces Moved 782 | 81 589 112 Core 10 | 8 . 2 Treads . | . . . Legs 772 | 73 589 110 Wheels . | . . . Hover . | . . . Flight . | . . . Fastest Speed 50 | 50 120 50 Average Speed 120 | 125 120 118 Slowest Speed 200 | 200 120 120 Overloaded Moves . | . . . Propulsion Burnouts . | . . . Robots Hopped . | . . . Cave-ins Triggered . | . . . Exploration Rate (%) 41 | 4 75 44 Regions Visited 2 Branch Regions 1 Pre-discovered Areas . | . . . Known Exits Taken 1 | . 1 . Unknown Exits Taken 1 | 1 . . Scrap Searched . | . . . Spaces Dug . | . . . Terrain Destroyed 32 | 10 14 8 Melee . | . . . Projectile . | . . . AOE 32 | 10 14 8 Terrain Rammed . | . . . Walls Destroyed . | . . . Machines Disabled . | . . . Actions | -11 -10 -10 --------- Run | Yrd Mat Min Total 964 | 106 733 125 Wait 43 | 6 33 4 Move 780 | 80 588 112 Hop . | . . . Pick Up 17 | 5 11 1 Fast Attach 15 | 6 9 . Attach 3 | . 3 . Detach 1 | . 1 . Swap 20 | . 18 2 Drop 18 | . 16 2 Fire 61 | 9 48 4 Melee 6 | . 6 . Ram . | . . . Kick . | . . . Crush . | . . . Escape Stasis . | . . . Rewire . | . . . Trap . | . . . Miscellaneous . | . . . Route ------- -11/Scrapyard -10/Materials (discovered 4 exits: [*Mat x3] / *Min) -10/Mines History --------- Turn | Location | Event 18 | -11/Scrapyard | Discovered new exit (range 16) 147 | -11/Scrapyard | Entered Materials 339 | -10/Materials | Build established: Mutant 353 | -10/Materials | Discovered new exit (range 16) 441 | -10/Materials | Discovered new exit (range 16) 501 | -10/Materials | Discovered new exit (range 15) 649 | -10/Materials | Identified exit to Mines 729 | -10/Materials | Discovered new exit (range 7) 814 | -10/Materials | Core integrity fell below 50% 858 | -10/Materials | Lost 3 parts (1p1n1u) 1096 | -10/Materials | Entered Mines 1128 | -10/Mines | Assisted by bots powering up and referring to "LRC-V3" 1144 | -10/Mines | Received a Rocket Launcher from a helpful Derelict 1226 | -10/Mines | Assembled infested the area 1231 | -10/Mines | Assisted by a Guerilla fighting off Assembled 1251 | -10/Mines | Core integrity fell below 20% 1251 | -10/Mines | Released all parts (6) 1252 | -10/Mines | Destroyed by D-53 Grenadier with Mini Grenade Launcher Last Messages --------------- I've been tracking a group of Assembled to figure out where they're coming from, and they're closing on this area, come on!" 01232_ 5G-8NB(h): "I'll hold them off! Go on ahead or try to find another way!" 01234_ HV Slug penetrates Wall. 01236_ as-87234 destroyed. 01236_ HV Slug penetrates as-93779. 01236_ as-93779 knocked back. 01239_ as-93779 destroyed. 01241_ System corrupted: Matter fused (-10). 01248_ C-30 ARC bursts open, deploying its payload. 01248_ D-53 Grenadier unfolds itself. 01249_ Rocket Launcher destroyed. 01249_ U-05 Engineer destroyed. 01251_ Released Aluminum Leg. 01251_ Released Sml. Storage Unit. 01251_ Released Ion Engine. 01251_ Released Aluminum Leg. 01251_ Released Heat Sink. 01251_ Released Grenade Launcher. Map ----- +----------------------------------------------------+ | | | | | | | ?????????????????????????????????????????????????? | | ?????????????????????????????????????????????????? | | ?????????????????????????????????????????????????? | | ?????????????????????????????????????????????????? | | ?????????????????????????????????????????????????? | | ?????????????????????????????????????????????????? | | ?????????????????????????????????????????????????? | | ?????????????????????????????????????????????????? | | ?????????????????????????????????????????????????? | | ?????????????????????????????????????????????????? | | ?????????????????????????????####????????????????? | | ????????????????????????????## ##???????????????? | | ???????????????????????????## #???????????????? | | ????# ????#####??????????? ##??????????????? | | ????# ## #####??????? ##?????????????? | | ?????# %% #??????? |! ##????????????? | | ?????##% ###??### d%! ##???????????? | | ??????# ### ## ### d* ## ##??????????? | | ?????# ##?# # ### #######????? | | ????# ###??#a # #??## ##???? | | ????# #?????# !!* #??# #???? | | ????## ##??????# !=[ #??# #???? | | ?????# #????????# =[]@ ##?## #???? | | ?????# ?????????#### ##?## ##???? | | ?????#?????????????# ##?## ##????? | | ???????????????????## #?## #?????? | | ????????????????????########?# ##????? | | ?????????????????????????????# ###### | | ?????????????????????????????# | | ?????????????????????????????## ## ##### | | ??????????????????????????????###?## ##???? | | ??????????????????????????????????## ####????? | | ??????????????????????????????????# ##???????? | | ??????????????????????????????????# ##???????? | | ??????????????????????????????????## ##??????? | | ???????????????????????????????????## #??????? | | ????????????????????????????????????## #??????? | | ?????????????????????????????????????## #??????? | | ??????????????????????????????######??## #??????? | | ???????????????????????????#### ##### ####### | | ????????????????????????#### | | ????????????????????? ##### ## | | ????????????????????? #####??????? | | ????????????????????????#### ## ###??????????? | | ???????????????????????????## ???# [#????????????? | | ?????????????????????????????????# #????????????? | | ?????????????????????????????###?# #????????????? | +----------------------------------------------------+ Best States ------------- Heat Dissipation 35 Energy Generation 10 Energy Capacity 250 Matter Stores 300 Matter Capacity 300 Sight Range 16 Terrain Scan Density 10 Armor Coverage 150 Evasion (%) 55 Item Schematics ----------------- None Robot Schematics ------------------ None Fabricated ------------ Nothing Alien Tech Used ----------------- None Achievements -------------- None Challenges ------------ None Game ------ Seed AntimatterHybridPick Manual? 0 Play Time 00:15:11 Cumulative 3.2 hours Start 2024.08.08 @ 20:47:32 End 2024.08.08 @ 23:07:18 Sessions 2 Manual Loads 0 Difficulty Rogue Special Mode None Game No. 7 Rogue 7 Adventurer 0 Explorer 0 Win Type - Total 0 Types 0/0/0/0/0/0/0/0/0 Lore% 4 Gallery% 6 Achievement% 6 Wizard Run 0 Options --------- Layout 0 ASCII 1 Keyboard 0 Movement Mouse Keybinds 0 Fullscreen 1 Font 24/X11 Map View 76x50 Zoom Use 0% Tactical HUD 1 Map Filters NONE Filters NONE Steam 0 RUN: 72aadb3d-8adf-4eb8-a31a-c7ee9cdd8ff7